{"text_format":"1","workbook":"xlsx","n_sheets":5,"sheets":["FP","EG ","QU","Levels","EM"],"not_rendered":{"charts":0,"images":2,"macros":1,"external_links":0,"defined_names":0,"comments":0,"pivot_tables":0},"unopened":[],"bounds":{"document_bytes":16777216,"sheet_cells":100000,"rows_first":2000,"rows_last":500,"rows_between":2000,"halvings":0,"cell_chars":16384,"cell_head_chars":4096},"cells_cut":0,"cells_raw":0,"read":"whole","date_system":"1900"}

{"sheet":"FP","index":0,"n_rows":101,"n_cols":7,"rows_kept":101,"cut":false,"hidden":true,"merged":[[0,6,3,19],[100,0,100,18]]}
[null," ",null,null,null,null,{"$f":"Levels!E27","v":"Tangent Meets a Radius"}]
[]
[]
[]
[]
[]
[]
[]
[]
[]
[]
[]
[{"$f":"Levels!G39","v":0}]
[]
[]
[]
[]
[]
[]
[]
[]
[]
[]
[]
[]
[]
[]
[]
[]
[]
[]
[]
[]
[]
[]
[]
[]
[]
[]
[]
[]
[]
[]
[]
[]
[]
[]
[]
[]
[]
[]
[]
[]
[]
[]
[]
[]
[]
[]
[]
[]
[]
[]
[]
[]
[]
[]
[]
[]
[]
[]
[]
[]
[]
[]
[]
[]
[]
[]
[]
[]
[]
[]
[]
[]
[]
[]
[]
[]
[]
[]
[]
[]
[]
[]
[]
[]
[]
[]
[]
["© 2015, Maths Kingdom, All Rights Reserved"]

{"sheet":"EG ","index":1,"n_rows":243,"n_cols":83,"rows_kept":243,"cut":false,"hidden":true,"merged":[[94,36,99,46],[94,48,99,98],[47,36,52,46],[47,48,61,98],[165,76,171,83],[167,66,173,73],[167,6,171,16],[173,82,179,92],[150,17,171,58],[157,7,161,15],[155,72,161,79],[242,0,245,100],[198,28,203,31],[198,32,203,36],[195,71,205,77],[174,7,191,58],[181,81,189,86],[181,73,191,79],[0,62,0,100],[4,4,4,6],[1,76,6,100],[4,50,4,53],[4,45,4,48],[4,14,4,22],[4,23,4,25],[4,33,4,44],[31,4,31,98],[32,4,33,98],[34,4,35,98],[72,36,77,46],[2,0,2,2],[4,0,4,3],[6,0,6,2],[72,48,83,98]]}
[{"$f":"Levels!E27","v":"Tangent Meets a Radius"},null,null,null,null,null,null,null,null,null,null,null,null,null,null,null,null,null,null,null,null,null,null,null,null,null,null,null,null,null,null,null,null,null,null,null,null,null,null,null,null,null,null,null,null,null,null,null,null,null,null,null,null,null,null,null,null,null,null,null,null,null,{"$f":"TODAY()","v":"2015-05-03"}]
[null,null,null,null,null,null,null,null,null,null,null,null,null,null,null,null,null,null,null,null,null,null,null,null,null,null,null,null,null,null,null,null,null,null,null,null,null,null,null,null,null,null,null,null,null,null,null,null,null,null,null,null,null,null,null,null,null,null,null,null,null,null,null,null,null,null,null,null,null,null,null,null,null,null,null,null,{"$f":"Levels!AC28","v":"Tangent Radius"}]
["LO ",null,null,{"$f":"Levels!E29","v":"To be able to apply a circle theorem"}]
[]
["Type",null,null,null,10,null,null,null,null,null,null,null,null,null,{"$f":"Levels!E41","v":"Level"},null,null,null,null,null,null,null,null,{"$f":"VLOOKUP($E$5,Levels!$B$42:$I$51,4,FALSE)","v":7},null,null,null,null,null,null,null,null,null," Numbers Between",null,null,null,null,null,null,null,null,null,null,null,{"$f":"VLOOKUP($E$5,Levels!$B$42:$Q$51,15,FALSE)","v":20},null,null,null,"-",{"$f":"VLOOKUP($E$5,Levels!$B$42:$S$51,17,FALSE)","v":70}]
[]
["QU",null,null,{"$f":"Levels!E33","v":"Find the size of the missing angles in each question"}]
[]
[]
[]
[]
[]
[]
[]
[]
[]
[]
[]
[]
[]
[]
[]
[]
[]
[]
[]
[]
[]
[]
[]
[]
[null,null,null,null,"There are 3 circle theorems often used"]
[]
[]
[null,null,null,null,"In Mathematical language  a quadrilateral inside a circle, whose vertices touch the circumference of the circle."]
[]
[]
[]
[]
[]
[]
[]
[]
[]
[]
[]
[]
[null,null,null,null,null,null,null,null,null,null,null,null,null,null,null,null,null,null,null,null,null,null,null,null,null,null,null,null,null,null,null,null,null,null,null,null,"Theorem",null,null,null,null,null,null,null,null,null,null,null,"When a tangent meets a radius at the same point on the circumference, they meet at 90⁰."]
[]
[]
[]
[]
[]
[]
[]
[]
[]
[]
[]
[]
[]
[]
[]
[]
[]
[]
[]
[]
[]
[]
[]
[]
[null,null,null,null,null,null,null,null,null,null,null,null,null,null,null,null,null,null,null,null,null,null,null,null,null,null,null,null,null,null,null,null,null,null,null,null,"Condition",null,null,null,null,null,null,null,null,null,null,null,"The tangent and radius must meet at the same point on the circumference of the circle."]
[]
[]
[]
[]
[]
[]
[]
[]
[]
[]
[]
[]
[]
[]
[]
[]
[]
[]
[]
[]
[]
[null,null,null,null,null,null,null,null,null,null,null,null,null,null,null,null,null,null,null,null,null,null,null,null,null,null,null,null,null,null,null,null,null,null,null,null,"Note ",null,null,null,null,null,null,null,null,null,null,null,"Angles on a straight line add up to 180⁰."]
[]
[]
[]
[]
[]
[]
[]
[]
[]
[]
[]
[]
[]
[]
[]
[]
[]
[]
[]
[]
[]
[]
[]
[]
[]
[]
[]
[]
[]
[]
[]
[]
[]
[]
[]
[]
[]
[]
[]
[]
[]
[]
[]
[]
[]
[]
[]
[]
[]
[]
[]
[]
[]
[]
[]
[null,null,null,null,null,null,null,null,null,null,null,null,null,null,null,null,null,"When a tangent and radius meet at the same point on the circumference, it produces a right angle."]
[]
[]
[]
[]
[]
[]
[null,null,null,null,null,null,null,"Theorem"]
[]
[]
[]
[]
[]
[]
[]
[null,null,null,null,null,null,null,null,null,null,null,null,null,null,null,null,null,null,null,null,null,null,null,null,null,null,null,null,null,null,null,null,null,null,null,null,null,null,null,null,null,null,null,null,null,null,null,null,null,null,null,null,null,null,null,null,null,null,null,null,null,null,null,null,null,null,null,null,null,null,null,null,null,null,null,null,{"$f":"EVEN(RANDBETWEEN(100,200))","v":150}]
[]
[null,null,null,null,null,null,null,null,null,null,null,null,null,null,null,null,null,null,null,null,null,null,null,null,null,null,null,null,null,null,null,null,null,null,null,null,null,null,null,null,null,null,null,null,null,null,null,null,null,null,null,null,null,null,null,null,null,null,null,null,null,null,null,null,null,null,{"$f":"EVEN(RANDBETWEEN(100,160))","v":102}]
[]
[]
[]
[]
[]
[null,null,null,null,null,null,null,null,null,null,null,null,null,null,null,null,null,null,null,null,null,null,null,null,null,null,null,null,null,null,null,null,null,null,null,null,null,null,null,null,null,null,null,null,null,null,null,null,null,null,null,null,null,null,null,null,null,null,null,null,null,null,null,null,null,null,null,null,null,null,null,null,null,null,null,null,null,null,null,null,null,null,"d "]
[null,null,null,null,null,null,null,"The radius and tangent meet at the same point on the circumference of the circle."]
[]
[]
[]
[]
[]
[]
[]
[]
[]
[]
[]
[]
[]
[]
[]
[]
[]
[]
[]
[]
[]
[]
[]
[null,null,null,null,null,null,null,null,null,null,null,null,null,null,null,null,null,null,null,null,null,null,null,null,null,null,null,null,"d =",null,null,null,{"$f":"\"90\"&\"⁰\"","v":"90⁰"}]
[]
[]
[]
[]
[]
[]
[]
[]
[]
[]
[]
[]
[]
[]
[]
[]
[]
[]
[]
[]
[]
[]
[]
[]
[]
[]
[]
[]
[]
[]
[]
[]
[]
[]
[]
[]
[]
[]
[]
[]
[]
[]
[]
[{"$f":"FP!A101","v":"© 2015, Maths Kingdom, All Rights Reserved"}]

{"sheet":"QU","index":2,"n_rows":252,"n_cols":102,"rows_kept":252,"cut":false,"hidden":true,"merged":[[154,77,169,82],[195,47,239,50],[228,81,242,84],[193,68,206,72],[226,26,240,34],[164,64,180,70],[203,16,223,19],[202,11,207,14],[134,47,142,53],[149,46,162,55],[148,32,168,38],[190,23,190,25],[218,44,224,46],[164,9,169,12],[183,31,188,34],[6,0,6,2],[2,0,2,2],[88,32,95,35],[4,0,4,3],[4,45,4,48],[88,3,95,6],[91,12,95,14],[4,50,4,53],[4,4,4,6],[4,23,4,25],[4,14,4,22],[4,33,4,44],[0,62,0,100],[1,76,6,100],[128,61,128,63],[128,80,128,82],[142,63,152,67],[128,4,128,6],[128,23,128,25],[128,42,128,44],[134,13,143,18],[152,26,157,29],[251,0,256,100],[183,66,188,68],[183,69,188,72],[183,9,188,11],[190,4,190,6],[244,9,249,11],[244,12,249,15],[183,28,188,30],[183,12,188,15],[190,61,190,63],[244,47,249,49],[244,50,249,53],[244,62,249,64],[244,65,249,68],[244,70,249,72],[244,73,249,76]]}
[{"$f":"Levels!E27","v":"Tangent Meets a Radius"},null,null,null,null,null,null,null,null,null,null,null,null,null,null,null,null,null,null,null,null,null,null,null,null,null,null,null,null,null,null,null,null,null,null,null,null,null,null,null,null,null,null,null,null,null,null,null,null,null,null,null,null,null,null,null,null,null,null,null,null,null,{"$f":"TODAY()","v":"2015-05-03"}]
[null,null,null,null,null,null,null,null,null,null,null,null,null,null,null,null,null,null,null,null,null,null,null,null,null,null,null,null,null,null,null,null,null,null,null,null,null,null,null,null,null,null,null,null,null,null,null,null,null,null,null,null,null,null,null,null,null,null,null,null,null,null,null,null,null,null,null,null,null,null,null,null,null,null,null,null,{"$f":"Levels!AC28","v":"Tangent Radius"}]
["LO ",null,null,{"$f":"Levels!E29","v":"To be able to apply a circle theorem"}]
[]
["Type",null,null,null,10,null,null,null,null,null,null," ",null,null,{"$f":"Levels!E41","v":"Level"},null,null,null,null,null,null,null,null,{"$f":"VLOOKUP(E5,Levels!B42:I51,4,FALSE)","v":7},null,null,null,null,null,null," ",null,null," Numbers Between",null,null,null,null,null,null,null,null,null,null,null,{"$f":"VLOOKUP(E5,Levels!B42:Q51,15,FALSE)","v":20},null,null,null,"-",{"$f":"VLOOKUP(E5,Levels!B42:S51,17,FALSE)","v":70},null,null,null,null,null,null,null," ",null,null,null,null,null,null," ",null,null,null,null,null,null," "]
[]
["QU",null,null,{"$f":"Levels!E33","v":"Find the size of the missing angles in each question"}]
[]
[]
[]
[]
[]
[]
[]
[]
[]
[]
[]
[]
[]
[]
[]
[]
[]
[]
[]
[]
[]
[]
[]
[]
[]
[]
[]
[]
[]
[]
[]
[]
[]
[]
[]
[]
[]
[]
[]
[]
[]
[]
[]
[]
[]
[]
[]
[]
[]
[]
[]
[]
[]
[]
[]
[]
[]
[]
[]
[]
[]
[]
[]
[]
[]
[]
[]
[]
[]
[]
[]
[]
[]
[]
[]
[]
[]
[]
[]
[]
[]
[null,null,null,"39⁰",null,null,null,null,null,null,null,null,null,null,null,null,null,null,null,null,null,null,null,null,null,null,null,null,null,null,null,null,"39⁰"]
[]
[]
[null,null,null,null,null,null,null,null,null,null,null,null,"a"]
[]
[]
[]
[]
[]
[]
[]
[]
[]
[]
[]
[]
[]
[]
[]
[]
[]
[]
[]
[]
[]
[]
[]
[]
[]
[]
[]
[]
[]
[]
[]
[]
[]
[]
[]
[]
[null,null,null,null,1,null,null,null,null,null,null,null,null,null,null,null,null,null,null,null,null,null,null,3,null,null,null,null,null,null,null,null,null,null,null,null,null,null,null,null,null,null,null,null,null,null,null,null,null,null,null,null,null,null,null,null,null,null,null,null,null,5]
[]
[]
[]
[]
[]
[null,null,null,null,null,null,null,null,null,null,null,null,null,{"$f":"IF(J165=EVEN(J165),\" a\",\" d\")","v":" a"},null,null,null,null,null,null,null,null,null,null,null,null,null,null,null,null,null,null,null,null,null,null,null,null,null,null,null,null,null,null,null,null,null,{"$f":"RANDBETWEEN($AT$5,$AY$5)","v":43}]
[]
[]
[]
[]
[]
[]
[]
[null,null,null,null,null,null,null,null,null,null,null,null,null,null,null,null,null,null,null,null,null,null,null,null,null,null,null,null,null,null,null,null,null,null,null,null,null,null,null,null,null,null,null,null,null,null,null,null,null,null,null,null,null,null,null,null,null,null,null,null,null,null,null,{"$f":"RANDBETWEEN($AT$5,$AY$5)","v":20}]
[]
[]
[]
[]
[]
[null,null,null,null,null,null,null,null,null,null,null,null,null,null,null,null,null,null,null,null,null,null,null,null,null,null,null,null,null,null,null,null,{"$f":"IF(AA153=EVEN(AA153),\"  r\",\"  s\")","v":"  r"}]
[null,null,null,null,null,null,null,null,null,null,null,null,null,null,null,null,null,null,null,null,null,null,null,null,null,null,null,null,null,null,null,null,null,null,null,null,null,null,null,null,null,null,null,null,null,null,{"$f":"AV135&\"⁰\"","v":"43⁰"}]
[]
[]
[null,null,null,null,null,null,null,null,null,null,null,null,null,null,null,null,null,null,null,null,null,null,null,null,null,null,{"$f":"RANDBETWEEN($AT$5,$AY$5)","v":20}]
[]
[null,null,null,null,null,null,null,null,null,null,null,null,null,null,null,null,null,null,null,null,null,null,null,null,null,null,null,null,null,null,null,null,null,null,null,null,null,null,null,null,null,null,null,null,null,null,null,null,null,null,null,null,null,null,null,null,null,null,null,null,null,null,null,null,null,null,null,null,null,null,null,null,null,null,null,null,null,{"$f":"IF(AA153=EVEN(AA153),\"j\",\"b\")","v":"j"}]
[]
[]
[]
[]
[]
[]
[]
[]
[]
[null,null,null,null,null,null,null,null,null,{"$f":"RANDBETWEEN($AT$5,$AY$5)","v":48},null,null,null,null,null,null,null,null,null,null,null,null,null,null,null,null,null,null,null,null,null,null,null,null,null,null,null,null,null,null,null,null,null,null,null,null,null,null,null,null,null,null,null,null,null,null,null,null,null,null,null,null,null,null,{"$f":"BL143&\"⁰\"","v":"20⁰"}]
[]
[]
[]
[]
[]
[]
[]
[]
[]
[]
[]
[]
[]
[null,null,null,null,null,null,null,null,null,null,null,null,null,null,null,null,null,null,null,null,null,null,null,null,null,null,null,null,null,null,null,null,null,null,null,null,null,null,null,null,null,null,null,null,null,null,null,null,null,null,null,null,null,null,null,null,null,null,null,null,null,null,null,null,null,null,null,null,null,null,null,null,null,null,null,null,null,null,null,null,null,null,null,null,null,null,null,null,null,null,null,null,null,null,null,null,null,null,null,null,null,"v"]
[]
[]
[]
[]
[null,null,null,null,null,null,null,null,null,{"$f":"N135&\" =\"","v":" a ="},null,null,{"$f":"180-90&\"⁰\"","v":"90⁰"},null,null,null,null,null,null,null,null,null,null,null,null,null,null,null,{"$f":"AG149&\" =\"","v":"  r ="},null,null,{"$f":"90-AV135&\"⁰\"","v":"47⁰"},null,null,null,null,null,null,null,null,null,null,null,null,null,null,null,null,null,null,null,null,null,null,null,null,null,null,null,null,null,null,null,null,null,null,{"$f":"BZ155&\" =\"","v":"j ="},null,null,{"$f":"90-BL143&\"⁰\"","v":"70⁰"}]
[]
[]
[]
[]
[]
[]
[null,null,null,null,2,null,null,null,null,null,null,null,null,null,null,null,null,null,null,null,null,null,null,4,null,null,null,null,null,null,null,null,null,null,null,null,null,null,null,null,null,null,null,null,null,null,null,null,null,null,null,null,null,null,null,null,null,null,null,null,null,6]
[]
[]
[null,null,null,null,null,null,null,null,null,null,null,null,null,null,null,null,null,null,null,null,null,null,null,null,null,null,null,null,null,null,null,null,null,null,null,null,null,null,null,null,null,null,null,null,null,null,null,null,null,null,null,null,null,null,null,null,null,null,null,null,null,null,null,null,null,null,null,null,{"$f":"IF(BL143=EVEN(BL143),\" w\", \" y\")","v":" w"}]
[]
[null,null,null,null,null,null,null,null,null,null,null,null,null,null,null,null,null,null,null,null,null,null,null,null,null,null,null,null,null,null,null,null,null,null,null,null,null,null,null,null,null,null,null,null,null,null,null,{"$f":"IF(BL143=EVEN(BL143),\" p\", \" h\")","v":" p"}]
[]
[]
[]
[]
[]
[]
[null,null,null,null,null,null,null,null,null,null,null,{"$f":"RANDBETWEEN($AT$5,$AY$5)","v":57}]
[null,null,null,null,null,null,null,null,null,null,null,null,null,null,null,null,{"$f":"IF(L203=EVEN(L203),\"r\",\"s\")","v":"s"}]
[]
[]
[]
[]
[]
[]
[]
[]
[]
[]
[]
[]
[]
[]
[null,null,null,null,null,null,null,null,null,null,null,null,null,null,null,null,null,null,null,null,null,null,null,null,null,null,null,null,null,null,null,null,null,null,null,null,null,null,null,null,null,null,null,null,{"$f":"RANDBETWEEN($AT$5,$AY$5)","v":51}]
[]
[]
[]
[]
[]
[]
[]
[null,null,null,null,null,null,null,null,null,null,null,null,null,null,null,null,null,null,null,null,null,null,null,null,null,null,{"$f":"\" \"&AS219&\"⁰\"","v":" 51⁰"}]
[]
[null,null,null,null,null,null,null,null,null,null,null,null,null,null,null,null,null,null,null,null,null,null,null,null,null,null,null,null,null,null,null,null,null,null,null,null,null,null,null,null,null,null,null,null,null,null,null,null,null,null,null,null,null,null,null,null,null,null,null,null,null,null,null,null,null,null,null,null,null,null,null,null,null,null,null,null,null,null,null,null,null,{"$f":"IF(AS219=EVEN(AS219),\" g\", \" c\")","v":" c"}]
[]
[]
[]
[]
[]
[]
[]
[]
[]
[]
[]
[]
[]
[]
[]
[null,null,null,null,null,null,null,null,null,{"$f":"Q204&\" =\"","v":"s ="},null,null,{"$f":"90&\"⁰\"","v":"90⁰"},null,null,null,null,null,null,null,null,null,null,null,null,null,null,null,null,null,null,null,null,null,null,null,null,null,null,null,null,null,null,null,null,null,null,{"$f":"AV196&\" =\"","v":" p ="},null,null,{"$f":"((90-AS219))&\"⁰\"","v":"39⁰"},null,null,null,null,null,null,null,null,null,null,null,{"$f":"BQ194&\" =\"","v":" w ="},null,null,{"$f":"45&\"⁰\"","v":"45⁰"},null,null,null,null,{"$f":"CD229&\" =\"","v":" c ="},null,null,{"$f":"45&\"⁰\"","v":"45⁰"}]
[]
[]
[]
[]
[]
[null,null,null,null,null,null,null,null,null,null,null,null,null,null,null,null,null,null,null,null,null,null,null,null,null,null,null,null,null,null,null,null,null,null,null,null,null,null,null,null,null,null,null,null,null,null,null,null,null,null,null,null,null,null,null,null,null,null,null,null,null,null,null,null,null,null,null,null,null,null,null,null,null,null,null,null,null,null,null,null,null,null,null,null,null,null,null,null,null,null,null,null,"s"]
[{"$f":"FP!A101","v":"© 2015, Maths Kingdom, All Rights Reserved"}]

{"sheet":"Levels","index":3,"n_rows":76,"n_cols":29,"rows_kept":76,"cut":false,"hidden":true,"merged":[[50,4,50,8],[45,4,45,8],[46,4,46,8],[47,4,47,8],[48,4,48,8],[49,4,49,8],[45,11,45,12],[46,11,46,12],[47,11,47,12],[44,15,44,16],[40,4,40,8],[41,4,41,8],[42,4,42,8],[43,4,43,8],[44,4,44,8],[45,15,45,16],[44,17,44,18],[50,15,50,16],[50,17,50,18],[47,15,47,16],[40,11,40,12],[41,11,41,12],[42,11,42,12],[43,17,43,18],[40,15,40,18],[43,15,43,16],[43,11,43,12],[41,15,41,16],[41,17,41,18],[42,15,42,16],[42,17,42,18],[44,11,44,12],[45,17,45,18],[46,15,46,16],[46,17,46,18],[48,15,48,16],[48,17,48,18],[53,0,53,52],[32,57,32,58],[28,26,28,27],[26,4,26,24],[28,4,28,25],[32,4,32,25],[26,28,26,52],[27,28,32,52],[28,1,28,3],[32,1,32,3],[49,15,49,16],[49,17,49,18],[47,17,47,18],[50,11,50,12],[48,11,48,12],[49,11,49,12]]}
[]
[]
[]
[]
[]
[]
[]
[]
[]
[]
[]
[]
[]
[]
[]
[]
[]
[]
[]
[]
[]
[]
[]
[]
[]
[]
[null,"Title",null,null,"Tangent Meets a Radius"]
[null,null,null,null,null,null,null,null,null,null,null,null,null,null,null,null,null,null,null,null,null,null,null,null,null,null,null,null,"Tangent Radius"]
[null,"LO ",null,null,"To be able to apply a circle theorem",null,null,null,null,null,null,null,null,null,null,null,null,null,null,null,null,null,null,null,null,null,"keywords"]
[]
[]
[]
[null,"QU",null,null,"Find the size of the missing angles in each question"]
[]
[]
[]
[]
[]
[]
[]
[null,"Type",null,null,"Level",null,null,null,null,null,null,"Grade",null,null,null,"Numbers between ",null,null,null,null,80]
[null,1,null,null,7,null,null,null,null,null,null,"B",null,null,null,20,null,30]
[null,2,null,null,7,null,null,null,null,null,null,"B",null,null,null,20,null,35]
[null,3,null,null,7,null,null,null,null,null,null,"B",null,null,null,20,null,40]
[null,4,null,null,7,null,null,null,null,null,null,"B",null,null,null,20,null,45]
[null,5,null,null,7,null,null,null,null,null,null,"B",null,null,null,20,null,50]
[null,6,null,null,7,null,null,null,null,null,null,"B",null,null,null,20,null,55]
[null,7,null,null,7,null,null,null,null,null,null,"B",null,null,null,20,null,57]
[null,8,null,null,7,null,null,null,null,null,null,"B",null,null,null,20,null,60]
[null,9,null,null,7,null,null,null,null,null,null,"B",null,null,null,20,null,65]
[null,10,null,null,7,null,null,null,null,null,null,"B",null,null,null,20,null,70]
[]
[]
[{"$f":"FP!A101","v":"© 2015, Maths Kingdom, All Rights Reserved"}]
["Level","G"]
["Grade","F",null,null,null,null,null,null,null,null,null,null,null,null,"Select from the list provided"]
[null,"E"]
[null,"D"]
[null,"C"]
[null,"B"]
[null,"A"]
[null,"A*"]
[null,1]
[null,2]
[null,3]
[null,4]
[null,5]
[null,6]
[null,7]
[null,8]
[null,9]
[null,10]
[null,11]
[null,12]
[null,13]
[null,14]

{"sheet":"EM","index":4,"n_rows":0,"n_cols":0,"rows_kept":0,"cut":false,"hidden":false,"merged":[]}